[Event "Titled Tuesday Blitz March 01 Late 2022"]
[White "Erdogdu, Mert"]
[Black "Aukhatov, Roman"]
[WhiteFideId "6301495"]
[BlackFideId "44150768"]
[WhiteElo "2485"]
[BlackElo "2112"]
[Result "0-1"]
[Round "11"]
[TimeControl "180+1"]
[Date "2022.03.01"]
[WhiteClock "0:00:13"]
[BlackClock "0:00:10"]

1. e4 {[%clk 0:03:00]}  c5 {[%clk 0:02:59]} 2. Nf3 {[%clk 0:03:00]}  Nf6 {[%clk 0:02:59]} 3. e5 {[%clk 0:02:59]}  Nd5 {[%clk 0:02:59]} 4. Nc3 {[%clk 0:03:00]}  e6 {[%clk 0:02:59]} 5. Nxd5 {[%clk 0:03:00]}  exd5 {[%clk 0:03:00]} 6. d4 {[%clk 0:03:00]}  Nc6 {[%clk 0:03:00]} 7. dxc5 {[%clk 0:03:01]}  Bxc5 {[%clk 0:03:01]} 8. Qxd5 {[%clk 0:03:01]}  Qb6 {[%clk 0:03:02]} 9. Bc4 {[%clk 0:03:00]}  Bxf2+ {[%clk 0:03:02]} 10. Ke2 {[%clk 0:02:59]}  O-O {[%clk 0:03:03]} 11. Rf1 {[%clk 0:02:57]}  Bc5 {[%clk 0:03:03]} 12. Ng5 {[%clk 0:02:57]}  Nd4+ {[%clk 0:03:04]} 13. Kd1 {[%clk 0:02:53]}  Ne6 {[%clk 0:03:04]} 14. Qe4 {[%clk 0:02:34]}  Nxg5 {[%clk 0:03:02]} 15. Bxg5 {[%clk 0:02:33]}  d5 {[%clk 0:03:03]} 16. exd6 {[%clk 0:02:29]}  Qxd6+ {[%clk 0:02:03]} 17. Bd3 {[%clk 0:02:22]}  f5 {[%clk 0:02:02]} 18. Qh4 {[%clk 0:01:39]}  Be6 {[%clk 0:01:49]} 19. a3 {[%clk 0:01:35]}  Rac8 {[%clk 0:01:46]} 20. Re1 {[%clk 0:01:15]}  Bf7 {[%clk 0:01:32]} 21. Be7 {[%clk 0:01:06]}  Qb6 {[%clk 0:01:16]} 22. Bxc5 {[%clk 0:00:49]}  Qxc5 {[%clk 0:01:12]} 23. Qb4 {[%clk 0:00:37]}  Qd5 {[%clk 0:00:55]} 24. Qd2 {[%clk 0:00:34]}  Rfd8 {[%clk 0:00:53]} 25. a4 {[%clk 0:00:32]}  Qd4 {[%clk 0:00:33]} 26. Rb1 {[%clk 0:00:07]}  Bh5+ {[%clk 0:00:33]} 27. Kc1 {[%clk 0:00:06]}  Qxd3 {[%clk 0:00:34]} 28. Qxd3 {[%clk 0:00:05]}  Rxd3 {[%clk 0:00:34]} 29. b4 {[%clk 0:00:05]}  Rdc3 {[%clk 0:00:33]} 30. Rb2 {[%clk 0:00:05]}  f4 {[%clk 0:00:32]} 31. Re7 {[%clk 0:00:05]}  Bg6 {[%clk 0:00:32]} 32. Rxb7 {[%clk 0:00:04]}  Bxc2 {[%clk 0:00:31]} 33. Kd2 {[%clk 0:00:04]}  Be4 {[%clk 0:00:29]} 34. Rxa7 {[%clk 0:00:04]}  Rd3+ {[%clk 0:00:23]} 35. Ke2 {[%clk 0:00:03]}  Re3+ {[%clk 0:00:21]} 36. Kf2 {[%clk 0:00:03]}  Rec3 {[%clk 0:00:06]} 37. Rd7 {[%clk 0:00:03]}  Rc2+ {[%clk 0:00:06]} 38. Rd2 {[%clk 0:00:03]}  Rxd2+ {[%clk 0:00:04]} 39. Rxd2 {[%clk 0:00:03]}  Rc4 {[%clk 0:00:04]} 40. Rb2 {[%clk 0:00:03]}  Kf7 {[%clk 0:00:05]} 41. a5 {[%clk 0:00:03]}  Bb7 {[%clk 0:00:04]} 42. b5 {[%clk 0:00:03]}  Ra4 {[%clk 0:00:05]} 43. a6 {[%clk 0:00:03]}  Ba8 {[%clk 0:00:05]} 44. b6 {[%clk 0:00:01]}  Rxa6 {[%clk 0:00:05]} 45. b7 {[%clk 0:00:01]}  Bxb7 {[%clk 0:00:06]} 46. Rxb7+ {[%clk 0:00:02]}  Kf6 {[%clk 0:00:06]} 47. Kf3 {[%clk 0:00:03]}  g5 {[%clk 0:00:04]} 48. Kg4 {[%clk 0:00:03]}  Ra2 {[%clk 0:00:02]} 49. Rxh7 {[%clk 0:00:03]}  Kg6 {[%clk 0:00:02]} 50. Kf3 {[%clk 0:00:03]}  Rb2 {[%clk 0:00:02]} 51. h4 {[%clk 0:00:04]}  Kxh7 {[%clk 0:00:03]} 52. hxg5 {[%clk 0:00:04]}  Kg7 {[%clk 0:00:04]} 53. Kxf4 {[%clk 0:00:05]}  Kg6 {[%clk 0:00:04]} 54. g4 {[%clk 0:00:06]}  Rc2 {[%clk 0:00:05]} 55. Kg3 {[%clk 0:00:06]}  Rb2 {[%clk 0:00:05]} 56. Kh4 {[%clk 0:00:07]}  Ra2 {[%clk 0:00:06]} 57. Kg3 {[%clk 0:00:07]}  Ra4 {[%clk 0:00:07]} 58. Kh4 {[%clk 0:00:08]}  Ra5 {[%clk 0:00:08]} 59. Kg3 {[%clk 0:00:08]}  Rxg5 {[%clk 0:00:09]} 60. Kh4 {[%clk 0:00:09]}  Kf6 {[%clk 0:00:09]} 61. Kg3 {[%clk 0:00:10]}  Ke5 {[%clk 0:00:09]} 62. Kh4 {[%clk 0:00:10]}  Kf4 {[%clk 0:00:09]} 63. Kh3 {[%clk 0:00:11]}  Rxg4 {[%clk 0:00:09]} 64. Kh2 {[%clk 0:00:12]}  Kf3 {[%clk 0:00:09]} 65. Kh3 {[%clk 0:00:12]}  Rf4 {[%clk 0:00:10]} 66. Kh2 {[%clk 0:00:13]}  Kf2 {[%clk 0:00:10]} 67. Kh3 {[%clk 0:00:13]}  Re4 {[%clk 0:00:10]} 0-1


[Site "https://www.chess.com"]

[Event "Titled Tuesday Blitz March 01 Late 2022"]
[White "Ezat, Mohamed"]
[Black "Mekhitarian, Krikor Sevag"]
[WhiteFideId "10600906"]
[BlackFideId "2107660"]
[WhiteElo "2386"]
[BlackElo "2598"]
[Result "0-1"]
[Round "11"]
[TimeControl "180+1"]
[Date "2022.03.01"]
[WhiteClock "0:00:10"]
[BlackClock "0:00:05"]

1. d4 {[%clk 0:02:58]}  Nf6 {[%clk 0:02:58]} 2. c4 {[%clk 0:02:57]}  g6 {[%clk 0:02:58]} 3. Nc3 {[%clk 0:02:58]}  d5 {[%clk 0:02:57]} 4. Bg5 {[%clk 0:02:57]}  Bg7 {[%clk 0:02:57]} 5. Bxf6 {[%clk 0:02:56]}  Bxf6 {[%clk 0:02:58]} 6. cxd5 {[%clk 0:02:56]}  c6 {[%clk 0:02:57]} 7. e3 {[%clk 0:02:51]}  cxd5 {[%clk 0:02:56]} 8. h4 {[%clk 0:02:50]}  O-O {[%clk 0:02:49]} 9. h5 {[%clk 0:02:49]}  Nc6 {[%clk 0:02:50]} 10. hxg6 {[%clk 0:02:49]}  hxg6 {[%clk 0:02:51]} 11. Qf3 {[%clk 0:02:42]}  e5 {[%clk 0:02:42]} 12. O-O-O {[%clk 0:02:29]}  exd4 {[%clk 0:02:41]} 13. Nxd5 {[%clk 0:02:28]}  Bg7 {[%clk 0:02:34]} 14. e4 {[%clk 0:02:27]}  Be6 {[%clk 0:02:26]} 15. Kb1 {[%clk 0:02:25]}  Rc8 {[%clk 0:02:17]} 16. Ne2 {[%clk 0:02:23]}  Ne5 {[%clk 0:01:56]} 17. Qb3 {[%clk 0:02:10]}  Bxd5 {[%clk 0:01:22]} 18. exd5 {[%clk 0:02:05]}  d3 {[%clk 0:01:17]} 19. Nf4 {[%clk 0:02:03]}  Nc4 {[%clk 0:00:52]} 20. Nxd3 {[%clk 0:00:40]}  Qg5 {[%clk 0:00:40]} 21. Ka1 {[%clk 0:00:30]}  Nxb2 {[%clk 0:00:34]} 22. f4 {[%clk 0:00:21]}  Nxd1+ {[%clk 0:00:22]} 23. Kb1 {[%clk 0:00:21]}  Qf5 {[%clk 0:00:10]} 24. Qxd1 {[%clk 0:00:19]}  Qxd5 {[%clk 0:00:10]} 25. Qb3 {[%clk 0:00:17]}  Qd4 {[%clk 0:00:10]} 26. Qb2 {[%clk 0:00:15]}  Qe3 {[%clk 0:00:07]} 27. Qf2 {[%clk 0:00:12]}  Rc1+ {[%clk 0:00:06]} 28. Nxc1 {[%clk 0:00:12]}  Qxf2 {[%clk 0:00:06]} 29. Nd3 {[%clk 0:00:12]}  Qd2 {[%clk 0:00:05]} 30. Rh3 {[%clk 0:00:10]}  Rc8 {[%clk 0:00:05]} 31. Rf3 {[%clk 0:00:10]}  Qc2# {[%clk 0:00:05]} 0-1


[Site "https://www.chess.com"]

[Event "Titled Tuesday Blitz March 01 Late 2022"]
[White "Fishbein, Alexander"]
[Black "Vusatiuk, Vladimir"]
[WhiteFideId "2000377"]
[BlackFideId "14118610"]
[WhiteElo "2442"]
[BlackElo "2157"]
[Result "1-0"]
[Round "11"]
[TimeControl "180+1"]
[Date "2022.03.01"]
[WhiteClock "0:00:06"]
[BlackClock "0:00:01"]

1. e4 {[%clk 0:03:00]}  Nc6 {[%clk 0:02:57]} 2. Nf3 {[%clk 0:03:00]}  f6 {[%clk 0:02:57]} 3. d4 {[%clk 0:02:59]}  d5 {[%clk 0:02:56]} 4. exd5 {[%clk 0:02:58]}  Qxd5 {[%clk 0:02:57]} 5. Nc3 {[%clk 0:02:57]}  Qf7 {[%clk 0:02:55]} 6. d5 {[%clk 0:02:56]}  Nd8 {[%clk 0:02:50]} 7. Nb5 {[%clk 0:02:48]}  e5 {[%clk 0:02:43]} 8. dxe6 {[%clk 0:02:42]}  Nxe6 {[%clk 0:02:33]} 9. Bc4 {[%clk 0:02:41]}  a6 {[%clk 0:02:28]} 10. Nbd4 {[%clk 0:02:33]}  c5 {[%clk 0:02:15]} 11. Nf5 {[%clk 0:02:26]}  g6 {[%clk 0:01:47]} 12. Nd6+ {[%clk 0:02:22]}  Bxd6 {[%clk 0:01:48]} 13. Qxd6 {[%clk 0:02:22]}  Qe7 {[%clk 0:01:48]} 14. Qxe7+ {[%clk 0:02:18]}  Nxe7 {[%clk 0:01:49]} 15. O-O {[%clk 0:02:17]}  b5 {[%clk 0:01:49]} 16. Bd3 {[%clk 0:02:03]}  Bb7 {[%clk 0:01:48]} 17. Re1 {[%clk 0:02:00]}  Kf7 {[%clk 0:01:46]} 18. Be3 {[%clk 0:01:45]}  c4 {[%clk 0:01:25]} 19. Be2 {[%clk 0:01:41]}  Nf5 {[%clk 0:01:26]} 20. b3 {[%clk 0:01:26]}  Nxe3 {[%clk 0:01:23]} 21. fxe3 {[%clk 0:01:27]}  cxb3 {[%clk 0:01:11]} 22. axb3 {[%clk 0:01:26]}  Rac8 {[%clk 0:01:11]} 23. c4 {[%clk 0:01:21]}  b4 {[%clk 0:00:31]} 24. Nd4 {[%clk 0:01:18]}  Nc5 {[%clk 0:00:27]} 25. Bf3 {[%clk 0:01:18]}  Bxf3 {[%clk 0:00:26]} 26. gxf3 {[%clk 0:01:17]}  Rhd8 {[%clk 0:00:25]} 27. Kg2 {[%clk 0:01:10]}  f5 {[%clk 0:00:24]} 28. Red1 {[%clk 0:00:59]}  f4 {[%clk 0:00:23]} 29. e4 {[%clk 0:00:45]}  Rc7 {[%clk 0:00:20]} 30. Nc2 {[%clk 0:00:24]}  Rxd1 {[%clk 0:00:16]} 31. Rxd1 {[%clk 0:00:25]}  a5 {[%clk 0:00:14]} 32. Nd4 {[%clk 0:00:21]}  Rd7 {[%clk 0:00:14]} 33. Kf2 {[%clk 0:00:11]}  Nxb3 {[%clk 0:00:13]} 34. Nxb3 {[%clk 0:00:09]}  Rxd1 {[%clk 0:00:13]} 35. Nxa5 {[%clk 0:00:10]}  Rd2+ {[%clk 0:00:13]} 36. Ke1 {[%clk 0:00:09]}  Rxh2 {[%clk 0:00:13]} 37. c5 {[%clk 0:00:09]}  Rc2 {[%clk 0:00:12]} 38. c6 {[%clk 0:00:10]}  h5 {[%clk 0:00:11]} 39. Kd1 {[%clk 0:00:10]}  Rc5 {[%clk 0:00:10]} 40. Nb7 {[%clk 0:00:08]}  Rxc6 {[%clk 0:00:10]} 41. Nd8+ {[%clk 0:00:09]}  Kf6 {[%clk 0:00:11]} 42. Nxc6 {[%clk 0:00:10]}  h4 {[%clk 0:00:11]} 43. Nxb4 {[%clk 0:00:08]}  h3 {[%clk 0:00:11]} 44. Nd3 {[%clk 0:00:09]}  Kg5 {[%clk 0:00:04]} 45. Ke2 {[%clk 0:00:08]}  Kh4 {[%clk 0:00:04]} 46. Kf2 {[%clk 0:00:08]}  g5 {[%clk 0:00:04]} 47. Ne5 {[%clk 0:00:08]}  Kh5 {[%clk 0:00:02]} 48. Ng4 {[%clk 0:00:07]}  Kg6 {[%clk 0:00:03]} 49. Kg1 {[%clk 0:00:07]}  Kh5 {[%clk 0:00:02]} 50. Kh2 {[%clk 0:00:07]}  Kh4 {[%clk 0:00:01]} 51. Nf2 {[%clk 0:00:06]} 1-0


[Site "https://www.chess.com"]

[Event "Titled Tuesday Blitz March 01 Late 2022"]
[White "Hjartarson, Johann"]
[Black "Chernomordik, Pavel"]
[WhiteFideId "2300044"]
[BlackFideId "2804530"]
[WhiteElo "2484"]
[BlackElo "2249"]
[Result "1/2-1/2"]
[Round "11"]
[TimeControl "180+1"]
[Date "2022.03.01"]
[WhiteClock "0:00:34"]
[BlackClock "0:00:22"]

1. e4 {[%clk 0:03:00]}  g6 {[%clk 0:03:00]} 2. d4 {[%clk 0:03:00]}  Bg7 {[%clk 0:03:01]} 3. Nc3 {[%clk 0:03:00]}  d6 {[%clk 0:03:01]} 4. f4 {[%clk 0:02:59]}  a6 {[%clk 0:03:01]} 5. Nf3 {[%clk 0:02:58]}  b5 {[%clk 0:03:01]} 6. Bd3 {[%clk 0:02:58]}  Nd7 {[%clk 0:03:01]} 7. a4 {[%clk 0:02:58]}  b4 {[%clk 0:03:00]} 8. Ne2 {[%clk 0:02:58]}  c5 {[%clk 0:03:00]} 9. c3 {[%clk 0:02:57]}  bxc3 {[%clk 0:03:00]} 10. bxc3 {[%clk 0:02:57]}  Qc7 {[%clk 0:03:01]} 11. O-O {[%clk 0:02:56]}  Bb7 {[%clk 0:02:57]} 12. Kh1 {[%clk 0:02:51]}  Ngf6 {[%clk 0:02:39]} 13. Ng3 {[%clk 0:02:49]}  O-O {[%clk 0:02:33]} 14. Qe2 {[%clk 0:02:46]}  e6 {[%clk 0:02:18]} 15. a5 {[%clk 0:02:38]}  c4 {[%clk 0:01:50]} 16. Bc2 {[%clk 0:02:34]}  e5 {[%clk 0:01:37]} 17. fxe5 {[%clk 0:02:23]}  dxe5 {[%clk 0:01:36]} 18. d5 {[%clk 0:02:21]}  Rfe8 {[%clk 0:01:31]} 19. Nd2 {[%clk 0:02:18]}  Rac8 {[%clk 0:01:27]} 20. Ra4 {[%clk 0:02:16]}  Nc5 {[%clk 0:01:22]} 21. Rb4 {[%clk 0:02:04]}  Qxa5 {[%clk 0:01:10]} 22. Nxc4 {[%clk 0:02:04]}  Qc7 {[%clk 0:01:03]} 23. Qf3 {[%clk 0:01:57]}  a5 {[%clk 0:00:59]} 24. d6 {[%clk 0:01:44]}  Qd8 {[%clk 0:00:51]} 25. Rb1 {[%clk 0:00:55]}  Ba6 {[%clk 0:00:51]} 26. Qe2 {[%clk 0:00:42]}  Nb7 {[%clk 0:00:37]} 27. Bd3 {[%clk 0:00:39]}  Bxc4 {[%clk 0:00:32]} 28. Bxc4 {[%clk 0:00:39]}  Nxd6 {[%clk 0:00:32]} 29. Ba2 {[%clk 0:00:35]}  Rxc3 {[%clk 0:00:31]} 30. Bg5 {[%clk 0:00:34]}  h6 {[%clk 0:00:22]} 1/2-1/2


[Site "https://www.chess.com"]

[Event "Titled Tuesday Blitz March 01 Late 2022"]
[White "Indjic, Aleksandar"]
[Black "Gutenev, Alexander"]
[WhiteFideId "911925"]
[BlackFideId "4195540"]
[WhiteElo "2616"]
[BlackElo "2403"]
[Result "1-0"]
[Round "11"]
[TimeControl "180+1"]
[Date "2022.03.01"]
[WhiteClock "0:00:33"]
[BlackClock "0:00:03"]

1. d4 {[%clk 0:03:00]}  Nf6 {[%clk 0:02:59]} 2. c4 {[%clk 0:02:59]}  b6 {[%clk 0:02:59]} 3. Nf3 {[%clk 0:02:56]}  Bb7 {[%clk 0:02:59]} 4. a3 {[%clk 0:02:56]}  g6 {[%clk 0:02:58]} 5. Nc3 {[%clk 0:02:55]}  Bg7 {[%clk 0:02:57]} 6. d5 {[%clk 0:02:55]}  O-O {[%clk 0:02:57]} 7. e4 {[%clk 0:02:55]}  e6 {[%clk 0:02:57]} 8. Bd3 {[%clk 0:02:54]}  exd5 {[%clk 0:02:54]} 9. cxd5 {[%clk 0:02:54]}  c6 {[%clk 0:02:54]} 10. d6 {[%clk 0:02:51]}  Na6 {[%clk 0:02:44]} 11. O-O {[%clk 0:02:50]}  Nc5 {[%clk 0:02:42]} 12. Bc2 {[%clk 0:02:49]}  Ne6 {[%clk 0:02:40]} 13. h3 {[%clk 0:02:44]}  c5 {[%clk 0:02:29]} 14. Re1 {[%clk 0:02:43]}  Nh5 {[%clk 0:02:12]} 15. Nd5 {[%clk 0:02:40]}  Bxd5 {[%clk 0:02:09]} 16. Qxd5 {[%clk 0:02:38]}  Nhf4 {[%clk 0:02:08]} 17. Qd1 {[%clk 0:02:37]}  c4 {[%clk 0:01:55]} 18. h4 {[%clk 0:02:35]}  Rc8 {[%clk 0:01:54]} 19. g3 {[%clk 0:02:33]}  Nd3 {[%clk 0:01:45]} 20. Bxd3 {[%clk 0:02:31]}  cxd3 {[%clk 0:01:46]} 21. Qxd3 {[%clk 0:02:31]}  Nc5 {[%clk 0:01:45]} 22. Qd5 {[%clk 0:02:31]}  Qf6 {[%clk 0:01:42]} 23. Kg2 {[%clk 0:02:28]}  Ne6 {[%clk 0:01:38]} 24. Re2 {[%clk 0:02:15]}  Rc5 {[%clk 0:01:38]} 25. Qd3 {[%clk 0:02:10]}  Rfc8 {[%clk 0:01:35]} 26. Be3 {[%clk 0:02:00]}  Rc4 {[%clk 0:01:33]} 27. e5 {[%clk 0:02:00]}  Qf5 {[%clk 0:01:32]} 28. Qxf5 {[%clk 0:01:59]}  gxf5 {[%clk 0:01:33]} 29. Rd1 {[%clk 0:01:47]}  f4 {[%clk 0:01:30]} 30. Bd2 {[%clk 0:01:45]}  Rc2 {[%clk 0:01:29]} 31. Rb1 {[%clk 0:01:30]}  R8c5 {[%clk 0:01:23]} 32. Kf1 {[%clk 0:01:24]}  fxg3 {[%clk 0:01:22]} 33. fxg3 {[%clk 0:01:25]}  Rd5 {[%clk 0:01:22]} 34. Bc3 {[%clk 0:01:24]}  Rxc3 {[%clk 0:00:57]} 35. bxc3 {[%clk 0:01:22]}  Rd3 {[%clk 0:00:58]} 36. Kf2 {[%clk 0:01:15]}  Rxc3 {[%clk 0:00:57]} 37. a4 {[%clk 0:01:09]}  Rxf3+ {[%clk 0:00:46]} 38. Kxf3 {[%clk 0:01:10]}  Nd4+ {[%clk 0:00:47]} 39. Kf2 {[%clk 0:01:09]}  Nxe2 {[%clk 0:00:47]} 40. Kxe2 {[%clk 0:01:10]}  Bxe5 {[%clk 0:00:48]} 41. Kf3 {[%clk 0:01:09]}  f5 {[%clk 0:00:44]} 42. Rc1 {[%clk 0:01:08]}  Kf7 {[%clk 0:00:43]} 43. Rc7 {[%clk 0:01:08]}  Ke6 {[%clk 0:00:43]} 44. Rxa7 {[%clk 0:01:06]}  Kxd6 {[%clk 0:00:43]} 45. Ra8 {[%clk 0:00:57]}  Kd5 {[%clk 0:00:38]} 46. Rf8 {[%clk 0:00:54]}  Ke6 {[%clk 0:00:38]} 47. Ra8 {[%clk 0:00:52]}  Kd5 {[%clk 0:00:37]} 48. Ra6 {[%clk 0:00:51]}  Kc5 {[%clk 0:00:30]} 49. a5 {[%clk 0:00:49]}  bxa5 {[%clk 0:00:27]} 50. Rxa5+ {[%clk 0:00:49]}  Kd4 {[%clk 0:00:23]} 51. Ra7 {[%clk 0:00:49]}  d5 {[%clk 0:00:17]} 52. Rxh7 {[%clk 0:00:48]}  Kc3 {[%clk 0:00:18]} 53. Re7 {[%clk 0:00:47]}  Bb8 {[%clk 0:00:14]} 54. h5 {[%clk 0:00:45]}  d4 {[%clk 0:00:13]} 55. Re8 {[%clk 0:00:40]}  Bd6 {[%clk 0:00:10]} 56. Re6 {[%clk 0:00:40]}  Bb8 {[%clk 0:00:09]} 57. Rc6+ {[%clk 0:00:38]}  Kd2 {[%clk 0:00:06]} 58. h6 {[%clk 0:00:38]}  d3 {[%clk 0:00:06]} 59. h7 {[%clk 0:00:38]}  Be5 {[%clk 0:00:06]} 60. Rc5 {[%clk 0:00:38]}  Ba1 {[%clk 0:00:06]} 61. Rxf5 {[%clk 0:00:38]}  Ke1 {[%clk 0:00:06]} 62. Ra5 {[%clk 0:00:37]}  Bc3 {[%clk 0:00:05]} 63. Rh5 {[%clk 0:00:34]}  Kd1 {[%clk 0:00:02]} 64. Rh1+ {[%clk 0:00:33]}  Kc2 {[%clk 0:00:02]} 65. h8=Q {[%clk 0:00:33]}  Bxh8 {[%clk 0:00:03]} 66. Rxh8 {[%clk 0:00:33]} 1-0


[Site "https://www.chess.com"]

[Event "Titled Tuesday Blitz March 01 Late 2022"]
[White "Iskusnyh, Sergei"]
[Black "Demchenko, Anton"]
[WhiteFideId "4120027"]
[BlackFideId "4160258"]
[WhiteElo "2492"]
[BlackElo "2539"]
[Result "0-1"]
[Round "11"]
[TimeControl "180+1"]
[Date "2022.03.01"]
[WhiteClock "0:00:17"]
[BlackClock "0:00:35"]

1. d4 {[%clk 0:03:00]}  Nf6 {[%clk 0:03:00]} 2. c4 {[%clk 0:02:59]}  d6 {[%clk 0:03:01]} 3. Nf3 {[%clk 0:02:59]}  Nbd7 {[%clk 0:03:01]} 4. Nc3 {[%clk 0:02:57]}  e5 {[%clk 0:03:01]} 5. g3 {[%clk 0:02:57]}  g6 {[%clk 0:03:01]} 6. Bg2 {[%clk 0:02:55]}  Bg7 {[%clk 0:03:01]} 7. O-O {[%clk 0:02:55]}  O-O {[%clk 0:03:01]} 8. e4 {[%clk 0:02:55]}  exd4 {[%clk 0:03:02]} 9. Nxd4 {[%clk 0:02:55]}  Nc5 {[%clk 0:03:03]} 10. Re1 {[%clk 0:02:52]}  Re8 {[%clk 0:03:02]} 11. h3 {[%clk 0:02:48]}  a5 {[%clk 0:03:03]} 12. Ndb5 {[%clk 0:02:46]}  Bd7 {[%clk 0:03:03]} 13. Bf4 {[%clk 0:02:36]}  Bxb5 {[%clk 0:03:03]} 14. cxb5 {[%clk 0:02:32]}  Nfd7 {[%clk 0:03:04]} 15. Qc2 {[%clk 0:02:06]}  h5 {[%clk 0:03:04]} 16. Rad1 {[%clk 0:02:04]}  h4 {[%clk 0:03:05]} 17. g4 {[%clk 0:02:02]}  Ne6 {[%clk 0:03:05]} 18. Be3 {[%clk 0:01:58]}  Be5 {[%clk 0:03:06]} 19. Nd5 {[%clk 0:01:54]}  g5 {[%clk 0:02:59]} 20. Qc1 {[%clk 0:01:48]}  Rc8 {[%clk 0:02:51]} 21. Bd2 {[%clk 0:01:39]}  c6 {[%clk 0:02:43]} 22. bxc6 {[%clk 0:01:39]}  Rxc6 {[%clk 0:02:28]} 23. Qb1 {[%clk 0:01:36]}  Ndf8 {[%clk 0:02:21]} 24. Bf1 {[%clk 0:01:15]}  Ng6 {[%clk 0:02:20]} 25. Be3 {[%clk 0:01:04]}  Ngf4 {[%clk 0:01:47]} 26. b4 {[%clk 0:01:03]}  a4 {[%clk 0:01:31]} 27. b5 {[%clk 0:01:02]}  Rc8 {[%clk 0:01:27]} 28. Rc1 {[%clk 0:01:02]}  Rxc1 {[%clk 0:01:20]} 29. Rxc1 {[%clk 0:01:01]}  Bd4 {[%clk 0:00:53]} 30. Nxf4 {[%clk 0:00:24]}  gxf4 {[%clk 0:00:52]} 31. Bxd4 {[%clk 0:00:23]}  Nxd4 {[%clk 0:00:53]} 32. Qb4 {[%clk 0:00:21]}  Rxe4 {[%clk 0:00:50]} 33. Qc3 {[%clk 0:00:19]}  f3 {[%clk 0:00:35]} 34. Qc8 {[%clk 0:00:17]}  Qxc8 {[%clk 0:00:34]} 35. Rxc8+ {[%clk 0:00:16]}  Kg7 {[%clk 0:00:35]} 36. b6 {[%clk 0:00:16]}  Re1 {[%clk 0:00:34]} 37. Rc7 {[%clk 0:00:14]}  Ne2+ {[%clk 0:00:33]} 38. Kh2 {[%clk 0:00:15]}  Rxf1 {[%clk 0:00:34]} 39. Rxb7 {[%clk 0:00:16]}  Rxf2+ {[%clk 0:00:34]} 40. Kh1 {[%clk 0:00:17]}  Ng3+ {[%clk 0:00:35]} 0-1


[Site "https://www.chess.com"]

[Event "Titled Tuesday Blitz March 01 Late 2022"]
[White "Janaszak, Dawid"]
[Black "Glavina, Pablo"]
[WhiteFideId "1119206"]
[BlackFideId "100234"]
[WhiteElo "2199"]
[BlackElo "2369"]
[Result "1/2-1/2"]
[Round "11"]
[TimeControl "180+1"]
[Date "2022.03.02"]
[WhiteClock "0:01:45"]
[BlackClock "0:02:22"]

1. e4 {[%clk 0:03:00]}  e5 {[%clk 0:03:00]} 2. f4 {[%clk 0:02:56]}  d5 {[%clk 0:02:54]} 3. exd5 {[%clk 0:02:53]}  exf4 {[%clk 0:02:49]} 4. Nf3 {[%clk 0:02:51]}  Nf6 {[%clk 0:02:49]} 5. Nc3 {[%clk 0:02:45]}  Bd6 {[%clk 0:02:48]} 6. Bb5+ {[%clk 0:02:37]}  Bd7 {[%clk 0:02:48]} 7. O-O {[%clk 0:02:33]}  O-O {[%clk 0:02:48]} 8. Bxd7 {[%clk 0:02:32]}  Nbxd7 {[%clk 0:02:48]} 9. d4 {[%clk 0:02:31]}  Nb6 {[%clk 0:02:48]} 10. Ne5 {[%clk 0:02:23]}  Nbxd5 {[%clk 0:02:45]} 11. Qf3 {[%clk 0:02:21]}  c6 {[%clk 0:02:29]} 12. Bxf4 {[%clk 0:02:11]}  Nxf4 {[%clk 0:02:28]} 13. Qxf4 {[%clk 0:02:12]}  Nd5 {[%clk 0:02:21]} 14. Nxd5 {[%clk 0:01:59]}  Bxe5 {[%clk 0:02:21]} 15. Qxe5 {[%clk 0:01:53]}  Qxd5 {[%clk 0:02:21]} 16. Qxd5 {[%clk 0:01:47]}  cxd5 {[%clk 0:02:22]} 17. Rae1 {[%clk 0:01:46]}  Rfe8 {[%clk 0:02:22]} 18. Kf2 {[%clk 0:01:45]} 1/2-1/2


[Site "https://www.chess.com"]